[Event "Early-Titled-Tuesday-Blitz-May-14-2024"]
[Site "Chess.com"]
[Date "2024.05.14"]
[Round "1"]
[White "Bauman_Guy"]
[Black "Kotofeyca"]
[Result "1-0"]
[WhiteElo "2886"]
[BlackElo "2509"]
[TimeControl "180+1"]
[EndTime "8:06:52 PDT"]
[Termination "Bauman_Guy won by checkmate"]

1. e4 {[%clk 0:02:59]} 1... c5 {[%clk 0:02:58.5]} 2. Nf3 {[%clk 0:02:58.6]} 2...
d6 {[%clk 0:02:59.1]} 3. d4 {[%clk 0:02:58.4]} 3... cxd4 {[%clk 0:03:00]} 4.
Nxd4 {[%clk 0:02:59.3]} 4... Nf6 {[%clk 0:03:00.6]} 5. Nc3 {[%clk 0:03:00]} 5...
a6 {[%clk 0:03:01.1]} 6. h3 {[%clk 0:03:00.3]} 6... b5 {[%clk 0:02:59.6]} 7. a4
{[%clk 0:02:57.7]} 7... b4 {[%clk 0:02:56.7]} 8. Nd5 {[%clk 0:02:57.8]} 8...
Nxe4 {[%clk 0:02:48.4]} 9. Qf3 {[%clk 0:02:56.3]} 9... Nc5 {[%clk 0:02:47.1]}
10. Be3 {[%clk 0:02:52.6]} 10... Bb7 {[%clk 0:02:41.7]} 11. O-O-O {[%clk
0:02:03.8]} 11... e6 {[%clk 0:02:38.7]} 12. Bc4 {[%clk 0:02:03.8]} 12... Nbd7
{[%clk 0:02:06.1]} 13. Qe2 {[%clk 0:01:44.9]} 13... exd5 {[%clk 0:01:47.5]} 14.
Nf5 {[%clk 0:01:35.2]} 14... Ne6 {[%clk 0:01:25.1]} 15. Bxd5 {[%clk 0:01:16.9]}
15... Bxd5 {[%clk 0:01:22.5]} 16. Rxd5 {[%clk 0:01:17.8]} 16... Nf6 {[%clk
0:01:18.8]} 17. Rd2 {[%clk 0:01:09.6]} 17... Be7 {[%clk 0:01:17.5]} 18. g4
{[%clk 0:00:59.4]} 18... O-O {[%clk 0:01:14.1]} 19. Qf3 {[%clk 0:00:59.5]} 19...
d5 {[%clk 0:01:07.7]} 20. Rhd1 {[%clk 0:00:58.6]} 20... Nc7 {[%clk 0:00:55.9]}
21. Bb6 {[%clk 0:00:53.1]} 21... Ne4 {[%clk 0:00:51.7]} 22. Rxd5 {[%clk
0:00:49.9]} 22... Bg5+ {[%clk 0:00:36.1]} 23. Kb1 {[%clk 0:00:41.1]} 23... Qxd5
{[%clk 0:00:33.2]} 24. Rxd5 {[%clk 0:00:40.1]} 24... Nxd5 {[%clk 0:00:34.1]} 25.
Qxe4 {[%clk 0:00:39.2]} 25... Nxb6 {[%clk 0:00:33.8]} 26. f4 {[%clk 0:00:38.7]}
26... Rfe8 {[%clk 0:00:31.3]} 27. Qd4 {[%clk 0:00:37.3]} 27... Bd8 {[%clk
0:00:31.7]} 28. a5 {[%clk 0:00:32.6]} 28... Bf6 {[%clk 0:00:28.3]} 29. Qxb6
{[%clk 0:00:30]} 29... Rab8 {[%clk 0:00:22.7]} 30. Qc6 {[%clk 0:00:27.9]} 30...
b3 {[%clk 0:00:22]} 31. cxb3 {[%clk 0:00:27.8]} 31... Re2 {[%clk 0:00:20.4]} 32.
g5 {[%clk 0:00:25.1]} 32... Rxb2+ {[%clk 0:00:20.3]} 33. Kc1 {[%clk 0:00:25.6]}
33... R8xb3 {[%clk 0:00:11.5]} 34. Qe8# {[%clk 0:00:24.8]} 1-0

[Event "Early-Titled-Tuesday-Blitz-May-14-2024"]
[Site "Chess.com"]
[Date "2024.05.14"]
[Round "1"]
[White "MasterKroket"]
[Black "GM_dmitrij"]
[Result "0-1"]
[WhiteElo "2541"]
[BlackElo "3026"]
[TimeControl "180+1"]
[EndTime "8:06:55 PDT"]
[Termination "GM_dmitrij won on time"]

1. e4 {[%clk 0:02:57]} 1... c6 {[%clk 0:02:59.8]} 2. d4 {[%clk 0:02:56.6]} 2...
d5 {[%clk 0:03:00.7]} 3. Nc3 {[%clk 0:02:53.4]} 3... dxe4 {[%clk 0:03:00.9]} 4.
Nxe4 {[%clk 0:02:54.3]} 4... Nf6 {[%clk 0:03:01.7]} 5. Nxf6+ {[%clk 0:02:52.2]}
5... exf6 {[%clk 0:03:02.6]} 6. c3 {[%clk 0:02:52.3]} 6... Bd6 {[%clk
0:03:02.6]} 7. Bd3 {[%clk 0:02:51.1]} 7... O-O {[%clk 0:03:02.5]} 8. Ne2 {[%clk
0:02:49.1]} 8... c5 {[%clk 0:03:02.2]} 9. O-O {[%clk 0:02:47.6]} 9... Nc6 {[%clk
0:02:58.3]} 10. dxc5 {[%clk 0:02:46.1]} 10... Bxc5 {[%clk 0:02:59.2]} 11. Bf4
{[%clk 0:02:38.4]} 11... Ne5 {[%clk 0:02:57.2]} 12. Be4 {[%clk 0:02:31.3]} 12...
Qe7 {[%clk 0:02:50.4]} 13. Qc2 {[%clk 0:02:16.7]} 13... h6 {[%clk 0:02:48.7]}
14. Ng3 {[%clk 0:02:13.6]} 14... Re8 {[%clk 0:02:43.6]} 15. b3 {[%clk
0:02:07.7]} 15... Be6 {[%clk 0:02:34.5]} 16. Rad1 {[%clk 0:02:01.6]} 16... Rac8
{[%clk 0:02:34.2]} 17. c4 {[%clk 0:01:55.2]} 17... a6 {[%clk 0:02:33.6]} 18. Nf5
{[%clk 0:01:51.2]} 18... Qf8 {[%clk 0:02:30.1]} 19. Bd5 {[%clk 0:01:39]} 19...
b5 {[%clk 0:02:26.2]} 20. Bxe6 {[%clk 0:01:20.2]} 20... fxe6 {[%clk 0:02:26.5]}
21. Bxe5 {[%clk 0:01:20.7]} 21... exf5 {[%clk 0:02:27]} 22. Bd4 {[%clk 0:01:16]}
22... bxc4 {[%clk 0:02:26.4]} 23. Qxc4+ {[%clk 0:01:11.8]} 23... Qf7 {[%clk
0:02:21.1]} 24. Qxf7+ {[%clk 0:01:00.5]} 24... Kxf7 {[%clk 0:02:22]} 25. Bxc5
{[%clk 0:00:50.5]} 25... Rxc5 {[%clk 0:02:22.9]} 26. Rd4 {[%clk 0:00:50.1]}
26... Re2 {[%clk 0:02:21.5]} 27. Ra4 {[%clk 0:00:47.2]} 27... a5 {[%clk
0:02:21.4]} 28. g3 {[%clk 0:00:46.2]} 28... g5 {[%clk 0:02:21.3]} 29. h4 {[%clk
0:00:42.3]} 29... Kg6 {[%clk 0:02:20.8]} 30. Kg2 {[%clk 0:00:34.5]} 30... Rb2
{[%clk 0:02:19.4]} 31. hxg5 {[%clk 0:00:26.3]} 31... fxg5 {[%clk 0:02:19.5]} 32.
Kg1 {[%clk 0:00:25.8]} 32... g4 {[%clk 0:02:18.4]} 33. Kg2 {[%clk 0:00:25.8]}
33... Kg5 {[%clk 0:02:19]} 34. Kg1 {[%clk 0:00:24.6]} 34... h5 {[%clk
0:02:19.5]} 35. Kg2 {[%clk 0:00:24.9]} 35... Rd5 {[%clk 0:02:19.8]} 36. Kg1
{[%clk 0:00:24.8]} 36... h4 {[%clk 0:02:20.3]} 37. gxh4+ {[%clk 0:00:24.9]}
37... Kxh4 {[%clk 0:02:21.2]} 38. Kg2 {[%clk 0:00:25.3]} 38... Kg5 {[%clk
0:02:21.7]} 39. Kg1 {[%clk 0:00:24.9]} 39... f4 {[%clk 0:02:22.2]} 40. Kg2
{[%clk 0:00:23.2]} 40... Rc5 {[%clk 0:02:21.3]} 41. Kg1 {[%clk 0:00:23]} 41...
f3 {[%clk 0:02:19.3]} 42. Rd1 {[%clk 0:00:21.4]} 42... Kh4 {[%clk 0:02:11.2]}
43. a3 {[%clk 0:00:11.4]} 43... Kh3 {[%clk 0:01:53.4]} 44. b4 {[%clk 0:00:06.3]}
44... Rcc2 {[%clk 0:01:35.9]} 45. Rf1 {[%clk 0:00:05.7]} 45... g3 {[%clk
0:01:34.1]} 46. Rxa5 {[%clk 0:00:05.6]} 46... Rxf2 {[%clk 0:01:27.9]} 47. Rxf2
{[%clk 0:00:03.9]} 47... Rxf2 {[%clk 0:01:28.8]} 48. Ra8 {[%clk 0:00:04]} 48...
Rg2+ {[%clk 0:01:20.3]} 49. Kf1 {[%clk 0:00:03.8]} 49... Ra2 {[%clk 0:01:20.7]}
50. Rh8+ {[%clk 0:00:03]} 50... Kg4 {[%clk 0:01:21]} 51. Rg8+ {[%clk 0:00:03.6]}
51... Kf4 {[%clk 0:01:20.8]} 52. Rf8+ {[%clk 0:00:04.2]} 52... Ke4 {[%clk
0:01:21.3]} 53. Re8+ {[%clk 0:00:04.6]} 53... Kd5 {[%clk 0:01:21.3]} 54. Re3
{[%clk 0:00:02.7]} 54... Ra1+ {[%clk 0:01:20.9]} 55. Re1 {[%clk 0:00:02.6]}
55... g2+ {[%clk 0:01:21.8]} 56. Kf2 {[%clk 0:00:03]} 56... Rxe1 {[%clk
0:01:22.1]} 57. Kxe1 {[%clk 0:00:03.6]} 57... g1=Q+ {[%clk 0:01:23]} 0-1

[Event "Early-Titled-Tuesday-Blitz-May-14-2024"]
[Site "Chess.com"]
[Date "2024.05.14"]
[Round "1"]
[White "David_Arutinian"]
[Black "betta2004"]
[Result "0-1"]
[WhiteElo "2827"]
[BlackElo "2503"]
[TimeControl "180+1"]
[EndTime "8:06:55 PDT"]
[Termination "betta2004 won by resignation"]

1. Nf3 {[%clk 0:03:00]} 1... b6 {[%clk 0:02:48.3]} 2. g3 {[%clk 0:02:57.2]} 2...
Bb7 {[%clk 0:02:48.8]} 3. Bg2 {[%clk 0:02:57.8]} 3... g6 {[%clk 0:02:49.1]} 4.
c4 {[%clk 0:02:58.4]} 4... Bg7 {[%clk 0:02:49.5]} 5. O-O {[%clk 0:02:59.1]} 5...
c5 {[%clk 0:02:49.3]} 6. Nc3 {[%clk 0:02:57.3]} 6... d6 {[%clk 0:02:49.4]} 7. e4
{[%clk 0:02:53.9]} 7... e6 {[%clk 0:02:49.8]} 8. d4 {[%clk 0:02:54]} 8... Ne7
{[%clk 0:02:48.2]} 9. d5 {[%clk 0:02:52.1]} 9... e5 {[%clk 0:02:47.4]} 10. a3
{[%clk 0:02:51.8]} 10... O-O {[%clk 0:02:46.7]} 11. b4 {[%clk 0:02:52.3]} 11...
f5 {[%clk 0:02:47.1]} 12. Ng5 {[%clk 0:02:52]} 12... Bc8 {[%clk 0:02:47]} 13.
bxc5 {[%clk 0:02:48.2]} 13... bxc5 {[%clk 0:02:46.7]} 14. Rb1 {[%clk 0:02:43.5]}
14... h6 {[%clk 0:02:45.2]} 15. Ne6 {[%clk 0:02:43.1]} 15... Bxe6 {[%clk
0:02:45.4]} 16. dxe6 {[%clk 0:02:44]} 16... Nbc6 {[%clk 0:02:46]} 17. exf5
{[%clk 0:02:43]} 17... gxf5 {[%clk 0:02:40.9]} 18. Nb5 {[%clk 0:02:42.9]} 18...
Nd4 {[%clk 0:02:39]} 19. Bxa8 {[%clk 0:02:41.7]} 19... Qxa8 {[%clk 0:02:39.9]}
20. Nxd4 {[%clk 0:02:41.6]} 20... cxd4 {[%clk 0:02:38.7]} 21. a4 {[%clk
0:02:41.1]} 21... Rf6 {[%clk 0:02:38.2]} 22. Qb3 {[%clk 0:02:37.9]} 22... Rxe6
{[%clk 0:02:31.8]} 23. c5 {[%clk 0:02:37.9]} 23... d5 {[%clk 0:02:32.3]} 24. Ba3
{[%clk 0:02:30.8]} 24... Rc6 {[%clk 0:02:28.2]} 25. Qb7 {[%clk 0:02:04.5]} 25...
Qc8 {[%clk 0:02:00.7]} 26. Qxa7 {[%clk 0:02:04.4]} 26... Rc7 {[%clk 0:01:59.2]}
27. Qb6 {[%clk 0:02:00.3]} 27... Nc6 {[%clk 0:01:59.1]} 28. a5 {[%clk
0:01:57.6]} 28... d3 {[%clk 0:01:58.5]} 29. a6 {[%clk 0:01:58]} 29... e4 {[%clk
0:01:58.8]} 30. Rb5 {[%clk 0:01:52.4]} 30... f4 {[%clk 0:01:55.9]} 31. a7 {[%clk
0:01:50.2]} 31... Rxa7 {[%clk 0:01:46.6]} 32. Bc1 {[%clk 0:01:38.5]} 32... f3
{[%clk 0:01:43.5]} 33. Kh1 {[%clk 0:01:39]} 33... Ra1 {[%clk 0:01:32.4]} 34. Rg1
{[%clk 0:01:31.7]} 34... d2 {[%clk 0:01:18.9]} 35. Rb1 {[%clk 0:01:18]} 35...
dxc1=Q {[%clk 0:01:17.4]} 36. Rbxc1 {[%clk 0:01:16.9]} 36... Rxc1 {[%clk
0:01:13.3]} 37. Rxc1 {[%clk 0:01:17.8]} 37... Bd4 {[%clk 0:01:02.3]} 38. Qb3
{[%clk 0:01:08.5]} 38... Qf5 {[%clk 0:00:59.3]} 39. Rd1 {[%clk 0:01:06.3]} 39...
e3 {[%clk 0:00:54]} 40. fxe3 {[%clk 0:00:58.8]} 40... f2 {[%clk 0:00:12.8]} 41.
Kg2 {[%clk 0:00:58.2]} 41... Bxc5 {[%clk 0:00:04.7]} 42. Qxd5+ {[%clk
0:00:54.4]} 42... Qxd5+ {[%clk 0:00:04.8]} 43. Rxd5 {[%clk 0:00:55.3]} 43...
Bxe3 {[%clk 0:00:05.3]} 44. Re5 {[%clk 0:00:54.2]} 44... Nxe5 {[%clk 0:00:05.3]}
45. Kf1 {[%clk 0:00:52.7]} 45... Ng4 {[%clk 0:00:05.6]} 0-1

[Event "Early-Titled-Tuesday-Blitz-May-14-2024"]
[Site "Chess.com"]
[Date "2024.05.14"]
[Round "1"]
[White "David_ATM"]
[Black "chessdjw"]
[Result "0-1"]
[WhiteElo "2455"]
[BlackElo "2792"]
[TimeControl "180+1"]
[EndTime "8:06:55 PDT"]
[Termination "chessdjw won on time"]

1. e4 {[%clk 0:03:00.9]} 1... e5 {[%clk 0:02:59.8]} 2. Nf3 {[%clk 0:03:00.6]}
2... Nc6 {[%clk 0:03:00.5]} 3. Bb5 {[%clk 0:03:00.7]} 3... a6 {[%clk 0:03:00.9]}
4. Ba4 {[%clk 0:03:01.3]} 4... Nf6 {[%clk 0:03:01.5]} 5. O-O {[%clk 0:02:59.4]}
5... b5 {[%clk 0:03:02]} 6. Bb3 {[%clk 0:02:59.5]} 6... Bc5 {[%clk 0:03:02.7]}
7. Re1 {[%clk 0:02:44.2]} 7... d6 {[%clk 0:03:02.7]} 8. c3 {[%clk 0:02:41.9]}
8... Bb6 {[%clk 0:03:00.8]} 9. a4 {[%clk 0:02:41.1]} 9... Rb8 {[%clk 0:03:00.4]}
10. axb5 {[%clk 0:02:40.3]} 10... axb5 {[%clk 0:03:00.3]} 11. h3 {[%clk
0:02:39]} 11... O-O {[%clk 0:02:55.6]} 12. d4 {[%clk 0:02:37.1]} 12... Re8
{[%clk 0:02:50]} 13. Bg5 {[%clk 0:02:33.7]} 13... h6 {[%clk 0:02:49.7]} 14. Bh4
{[%clk 0:02:32.9]} 14... g5 {[%clk 0:02:49.9]} 15. Nxg5 {[%clk 0:02:08.5]} 15...
hxg5 {[%clk 0:02:49.5]} 16. Bxg5 {[%clk 0:02:09.4]} 16... exd4 {[%clk
0:02:49.8]} 17. cxd4 {[%clk 0:01:55.2]} 17... Nxd4 {[%clk 0:02:33.4]} 18. Nc3
{[%clk 0:01:25.8]} 18... Re5 {[%clk 0:02:12]} 19. Bh4 {[%clk 0:01:17.1]} 19...
Nxb3 {[%clk 0:02:07.9]} 20. Qxb3 {[%clk 0:01:16.6]} 20... Rh5 {[%clk 0:02:05.6]}
21. g3 {[%clk 0:00:56.7]} 21... Be6 {[%clk 0:01:47.9]} 22. Qd1 {[%clk
0:00:51.4]} 22... Rxh4 {[%clk 0:01:35.4]} 23. gxh4 {[%clk 0:00:51.2]} 23... Qf8
{[%clk 0:01:33.6]} 24. Qf3 {[%clk 0:00:44.5]} 24... Qh6 {[%clk 0:01:34.1]} 25.
e5 {[%clk 0:00:35.3]} 25... dxe5 {[%clk 0:01:23.5]} 26. Ne4 {[%clk 0:00:17.4]}
26... Nxe4 {[%clk 0:01:18]} 27. Rxe4 {[%clk 0:00:18.3]} 27... Bd4 {[%clk
0:01:12.1]} 28. Kh2 {[%clk 0:00:14.4]} 28... f5 {[%clk 0:01:01.3]} 29. Rg1+
{[%clk 0:00:08.8]} 29... Kh8 {[%clk 0:01:01.5]} 30. Re2 {[%clk 0:00:09.4]} 30...
e4 {[%clk 0:00:57.3]} 31. Qg3 {[%clk 0:00:06.4]} 31... Rg8 {[%clk 0:00:57.2]}
32. Qxc7 {[%clk 0:00:04.8]} 32... Qxh4 {[%clk 0:00:44.4]} 33. Rxg8+ {[%clk
0:00:03.7]} 33... Bxg8 {[%clk 0:00:45.1]} 34. Qd7 {[%clk 0:00:02.3]} 34... Bxf2
{[%clk 0:00:35.7]} 35. Qe6 {[%clk 0:00:00.3]} 35... Qg3+ {[%clk 0:00:35.4]} 0-1

[Event "Early-Titled-Tuesday-Blitz-May-14-2024"]
[Site "Chess.com"]
[Date "2024.05.14"]
[Round "1"]
[White "IvanMorovic"]
[Black "Aygehovit1992"]
[Result "0-1"]
[WhiteElo "2438"]
[BlackElo "2857"]
[TimeControl "180+1"]
[EndTime "8:06:56 PDT"]
[Termination "Aygehovit1992 won by resignation"]

1. d4 {[%clk 0:03:00.9]} 1... Nf6 {[%clk 0:02:55.4]} 2. c4 {[%clk 0:03:00.2]}
2... g6 {[%clk 0:02:55.4]} 3. Nc3 {[%clk 0:03:00]} 3... Bg7 {[%clk 0:02:54.5]}
4. e4 {[%clk 0:02:59.8]} 4... d6 {[%clk 0:02:54.7]} 5. Nf3 {[%clk 0:02:59.5]}
5... O-O {[%clk 0:02:54.1]} 6. Be2 {[%clk 0:02:59.5]} 6... e5 {[%clk 0:02:54.6]}
7. d5 {[%clk 0:02:58.9]} 7... a5 {[%clk 0:02:54.2]} 8. h3 {[%clk 0:02:58.6]}
8... Na6 {[%clk 0:02:54.6]} 9. Bg5 {[%clk 0:02:57.7]} 9... Qe8 {[%clk
0:02:47.6]} 10. Nd2 {[%clk 0:02:52]} 10... Nd7 {[%clk 0:02:46.8]} 11. g4 {[%clk
0:02:44.3]} 11... f6 {[%clk 0:02:45.8]} 12. Be3 {[%clk 0:02:40.7]} 12... f5
{[%clk 0:02:46.1]} 13. gxf5 {[%clk 0:02:21.9]} 13... gxf5 {[%clk 0:02:47]} 14.
exf5 {[%clk 0:02:21]} 14... Ndc5 {[%clk 0:02:44.6]} 15. Rg1 {[%clk 0:02:06.9]}
15... Kh8 {[%clk 0:02:39.6]} 16. Nde4 {[%clk 0:02:01.7]} 16... Bxf5 {[%clk
0:02:34.8]} 17. Nxc5 {[%clk 0:01:53.7]} 17... Nxc5 {[%clk 0:02:34.7]} 18. Bxc5
{[%clk 0:01:53.3]} 18... dxc5 {[%clk 0:02:34.9]} 19. Bg4 {[%clk 0:01:51.2]}
19... Bg6 {[%clk 0:02:27.8]} 20. Qd2 {[%clk 0:01:35.1]} 20... e4 {[%clk
0:02:23.3]} 21. Be6 {[%clk 0:01:26.8]} 21... a4 {[%clk 0:02:22.7]} 22. a3 {[%clk
0:01:25.7]} 22... Ra6 {[%clk 0:02:19.6]} 23. O-O-O {[%clk 0:01:24.8]} 23... Rb6
{[%clk 0:02:07.7]} 24. Rg3 {[%clk 0:01:17.7]} 24... Rb3 {[%clk 0:02:03.8]} 25.
Rdg1 {[%clk 0:01:17]} 25... Rf3 {[%clk 0:01:37.9]} 26. Rxg6 {[%clk 0:01:07.4]}
26... hxg6 {[%clk 0:01:35.7]} 27. Qg5 {[%clk 0:01:06.9]} 27... Qf8 {[%clk
0:01:17.3]} 28. Rg4 {[%clk 0:00:56.2]} 28... Rxh3 {[%clk 0:01:04.9]} 29. Nxe4
{[%clk 0:00:34.1]} 29... Rh1+ {[%clk 0:00:59.7]} 30. Rg1 {[%clk 0:00:29.3]}
30... Rxg1+ {[%clk 0:00:54.3]} 31. Qxg1 {[%clk 0:00:30.2]} 31... Qf4+ {[%clk
0:00:54.3]} 32. Kd1 {[%clk 0:00:19.4]} 32... Qf3+ {[%clk 0:00:51.5]} 33. Kc1
{[%clk 0:00:15.6]} 33... Bxb2+ {[%clk 0:00:47.8]} 34. Kd2 {[%clk 0:00:14]} 34...
Qd3+ {[%clk 0:00:31.7]} 35. Ke1 {[%clk 0:00:13.6]} 35... Qb1+ {[%clk 0:00:31.6]}
0-1

[Event "Early-Titled-Tuesday-Blitz-May-14-2024"]
[Site "Chess.com"]
[Date "2024.05.14"]
[Round "1"]
[White "andrzej"]
[Black "maciek_92"]
[Result "0-1"]
[WhiteElo "2463"]
[BlackElo "2801"]
[TimeControl "180+1"]
[EndTime "8:06:57 PDT"]
[Termination "maciek_92 won by checkmate"]

1. e4 {[%clk 0:03:00.9]} 1... c5 {[%clk 0:02:59.8]} 2. Nf3 {[%clk 0:03:01.2]}
2... e6 {[%clk 0:02:57.3]} 3. d4 {[%clk 0:03:01.2]} 3... cxd4 {[%clk 0:02:58.2]}
4. Nxd4 {[%clk 0:03:01.9]} 4... Nc6 {[%clk 0:02:58.9]} 5. c4 {[%clk 0:03:01.4]}
5... Nf6 {[%clk 0:02:58.6]} 6. Nc3 {[%clk 0:03:01.1]} 6... Bb4 {[%clk
0:02:56.5]} 7. Qd3 {[%clk 0:03:00.9]} 7... O-O {[%clk 0:02:49.2]} 8. Be2 {[%clk
0:02:47.6]} 8... d5 {[%clk 0:02:47.1]} 9. exd5 {[%clk 0:02:41.2]} 9... exd5
{[%clk 0:02:46.8]} 10. Nxc6 {[%clk 0:02:40.2]} 10... bxc6 {[%clk 0:02:47.7]} 11.
O-O {[%clk 0:02:23.5]} 11... Ba6 {[%clk 0:02:27.5]} 12. Qf3 {[%clk 0:02:13.1]}
12... Re8 {[%clk 0:01:48.3]} 13. Rd1 {[%clk 0:02:02.3]} 13... Bxc3 {[%clk
0:01:15.3]} 14. bxc3 {[%clk 0:02:01.2]} 14... Qa5 {[%clk 0:01:01.3]} 15. Bg5
{[%clk 0:01:36]} 15... Ne4 {[%clk 0:00:58.2]} 16. Bd2 {[%clk 0:01:19]} 16...
Rad8 {[%clk 0:00:51]} 17. Be1 {[%clk 0:01:17.6]} 17... Nd6 {[%clk 0:00:41.5]}
18. Bd3 {[%clk 0:01:01.5]} 18... Bxc4 {[%clk 0:00:40.5]} 19. Bc2 {[%clk
0:00:59.1]} 19... Be2 {[%clk 0:00:34.6]} 20. Qh3 {[%clk 0:00:53.3]} 20... h6
{[%clk 0:00:26.8]} 21. Rd4 {[%clk 0:00:53.4]} 21... Bc4 {[%clk 0:00:17.5]} 22.
Rg4 {[%clk 0:00:48.9]} 22... Re6 {[%clk 0:00:17.5]} 23. Bd2 {[%clk 0:00:39.2]}
23... Rde8 {[%clk 0:00:16.6]} 24. Be3 {[%clk 0:00:37.9]} 24... Qxc3 {[%clk
0:00:13.3]} 25. Rc1 {[%clk 0:00:38.2]} 25... Qb2 {[%clk 0:00:11.1]} 26. Qg3
{[%clk 0:00:03.5]} 26... Qxc1+ {[%clk 0:00:10.9]} 27. Bxc1 {[%clk 0:00:02.9]}
27... Re1# {[%clk 0:00:11.8]} 0-1

[Event "Early-Titled-Tuesday-Blitz-May-14-2024"]
[Site "Chess.com"]
[Date "2024.05.14"]
[Round "1"]
[White "nitpicker"]
[Black "FoggyMorning"]
[Result "0-1"]
[WhiteElo "2276"]
[BlackElo "2612"]
[TimeControl "180+1"]
[EndTime "8:06:58 PDT"]
[Termination "FoggyMorning won by resignation"]

1. d4 {[%clk 0:02:59.7]} 1... Nf6 {[%clk 0:02:59.3]} 2. c4 {[%clk 0:02:58.9]}
2... e6 {[%clk 0:02:59.7]} 3. g3 {[%clk 0:02:58.6]} 3... Bb4+ {[%clk 0:03:00]}
4. Bd2 {[%clk 0:02:56.9]} 4... Qe7 {[%clk 0:02:59.8]} 5. Bg2 {[%clk 0:02:56.3]}
5... Nc6 {[%clk 0:02:59.7]} 6. Nf3 {[%clk 0:02:56]} 6... Bxd2+ {[%clk
0:02:59.9]} 7. Qxd2 {[%clk 0:02:54.9]} 7... Ne4 {[%clk 0:03:00]} 8. Qc2 {[%clk
0:02:54.4]} 8... Qb4+ {[%clk 0:03:00.6]} 9. Kf1 {[%clk 0:02:54.6]} 9... d5
{[%clk 0:02:57.6]} 10. b3 {[%clk 0:02:42.3]} 10... O-O {[%clk 0:02:50.2]} 11. a3
{[%clk 0:02:41]} 11... Qe7 {[%clk 0:02:43.9]} 12. Nbd2 {[%clk 0:02:33.5]} 12...
Nxd2+ {[%clk 0:02:40.4]} 13. Qxd2 {[%clk 0:02:33.4]} 13... Rd8 {[%clk
0:02:17.8]} 14. cxd5 {[%clk 0:02:22.4]} 14... exd5 {[%clk 0:02:15.9]} 15. b4
{[%clk 0:02:16.2]} 15... Bf5 {[%clk 0:02:12]} 16. e3 {[%clk 0:02:08.7]} 16... a6
{[%clk 0:02:07.8]} 17. Ke2 {[%clk 0:02:08.3]} 17... Na7 {[%clk 0:01:56.5]} 18.
Rhc1 {[%clk 0:02:05.7]} 18... c6 {[%clk 0:01:56.2]} 19. Kf1 {[%clk 0:02:02.4]}
19... Nb5 {[%clk 0:01:54.8]} 20. Ne5 {[%clk 0:01:55.1]} 20... Nd6 {[%clk
0:01:51.7]} 21. Nd3 {[%clk 0:01:54.6]} 21... Nc4 {[%clk 0:01:38.2]} 22. Qe2
{[%clk 0:01:52.3]} 22... Bxd3 {[%clk 0:01:23.6]} 23. Qxd3 {[%clk 0:01:51.4]}
23... Rd6 {[%clk 0:01:23.5]} 24. Rc2 {[%clk 0:01:45]} 24... b5 {[%clk
0:01:23.2]} 25. a4 {[%clk 0:01:41.7]} 25... Re8 {[%clk 0:01:14.6]} 26. axb5
{[%clk 0:01:36.6]} 26... axb5 {[%clk 0:01:15.5]} 27. Rca2 {[%clk 0:01:36]} 27...
Rh6 {[%clk 0:01:15.3]} 28. Kg1 {[%clk 0:01:33.8]} 28... Qxb4 {[%clk 0:01:14.2]}
29. Ra8 {[%clk 0:01:29.4]} 29... Re6 {[%clk 0:01:13.6]} 30. Bh3 {[%clk
0:01:29.1]} 30... Qf8 {[%clk 0:00:28.7]} 31. Bxe6 {[%clk 0:01:27.3]} 31... Rxa8
{[%clk 0:00:28.3]} 32. Rxa8 {[%clk 0:01:16.5]} 32... Qxa8 {[%clk 0:00:29.2]} 33.
Bd7 {[%clk 0:01:15.5]} 33... Qb7 {[%clk 0:00:21.4]} 34. Qf5 {[%clk 0:01:00.9]}
34... g6 {[%clk 0:00:20.2]} 35. Qg4 {[%clk 0:00:58.7]} 35... h5 {[%clk
0:00:18.5]} 36. Qh3 {[%clk 0:00:58.8]} 36... b4 {[%clk 0:00:18.3]} 37. Bc8
{[%clk 0:00:56.9]} 37... Qc7 {[%clk 0:00:17.7]} 38. Ba6 {[%clk 0:00:45.6]} 38...
b3 {[%clk 0:00:16.1]} 39. Qf1 {[%clk 0:00:45.5]} 39... Qb6 {[%clk 0:00:14.5]}
40. Bxc4 {[%clk 0:00:44.8]} 40... dxc4 {[%clk 0:00:15.4]} 41. Qxc4 {[%clk
0:00:40.8]} 41... b2 {[%clk 0:00:15.2]} 42. d5 {[%clk 0:00:39.7]} 42... b1=Q+
{[%clk 0:00:14.9]} 43. Kg2 {[%clk 0:00:40.6]} 43... cxd5 {[%clk 0:00:14.6]} 44.
Qxd5 {[%clk 0:00:40.2]} 44... Qb7 {[%clk 0:00:14.8]} 0-1

[Event "Early-Titled-Tuesday-Blitz-May-14-2024"]
[Site "Chess.com"]
[Date "2024.05.14"]
[Round "1"]
[White "LuisFSiles"]
[Black "bascheyaro"]
[Result "0-1"]
[WhiteElo "2470"]
[BlackElo "2819"]
[TimeControl "180+1"]
[EndTime "8:07:00 PDT"]
[Termination "bascheyaro won by resignation"]

1. e4 {[%clk 0:03:00.9]} 1... e6 {[%clk 0:02:44.7]} 2. d4 {[%clk 0:02:58.8]}
2... d5 {[%clk 0:02:44.6]} 3. e5 {[%clk 0:02:59.2]} 3... c5 {[%clk 0:02:44.8]}
4. c3 {[%clk 0:02:59.7]} 4... Qb6 {[%clk 0:02:45.2]} 5. Nf3 {[%clk 0:03:00]}
5... Bd7 {[%clk 0:02:45.8]} 6. a3 {[%clk 0:02:59.8]} 6... Bb5 {[%clk 0:02:46]}
7. b4 {[%clk 0:02:59.2]} 7... cxd4 {[%clk 0:02:45.8]} 8. Bxb5+ {[%clk
0:02:58.4]} 8... Qxb5 {[%clk 0:02:46.2]} 9. cxd4 {[%clk 0:02:57.2]} 9... Ne7
{[%clk 0:02:45]} 10. Nc3 {[%clk 0:02:57.3]} 10... Qd7 {[%clk 0:02:45.2]} 11. O-O
{[%clk 0:02:53]} 11... Nbc6 {[%clk 0:02:44.4]} 12. Be3 {[%clk 0:02:50.5]} 12...
h5 {[%clk 0:02:43.2]} 13. Na4 {[%clk 0:02:28.3]} 13... b6 {[%clk 0:02:36.5]} 14.
h4 {[%clk 0:02:25.2]} 14... Nf5 {[%clk 0:02:35.8]} 15. Rc1 {[%clk 0:02:22]}
15... Be7 {[%clk 0:02:35.7]} 16. g3 {[%clk 0:02:21]} 16... O-O {[%clk
0:02:32.6]} 17. Nc3 {[%clk 0:02:15.1]} 17... Rfc8 {[%clk 0:02:31.6]} 18. Ne2
{[%clk 0:02:15.1]} 18... g6 {[%clk 0:02:26.3]} 19. Nf4 {[%clk 0:02:14]} 19... b5
{[%clk 0:02:16.8]} 20. Ng5 {[%clk 0:01:58.6]} 20... Bxg5 {[%clk 0:01:57]} 21.
hxg5 {[%clk 0:01:57.5]} 21... a5 {[%clk 0:01:57]} 22. Kg2 {[%clk 0:01:26.2]}
22... axb4 {[%clk 0:01:56.4]} 23. Rh1 {[%clk 0:01:23.1]} 23... Ng7 {[%clk
0:01:31.2]} 24. g4 {[%clk 0:01:18.2]} 24... bxa3 {[%clk 0:01:18.9]} 25. gxh5
{[%clk 0:01:10.1]} 25... Ne7 {[%clk 0:01:16.3]} 26. hxg6 {[%clk 0:00:58.3]}
26... fxg6 {[%clk 0:01:09.5]} 27. Ra1 {[%clk 0:00:36.5]} 27... b4 {[%clk
0:01:02.7]} 28. Rh6 {[%clk 0:00:23.1]} 28... Qa4 {[%clk 0:00:42.3]} 29. Qg4
{[%clk 0:00:18.8]} 29... Qc2 {[%clk 0:00:41.9]} 30. Rah1 {[%clk 0:00:17.7]}
30... Kf7 {[%clk 0:00:33.2]} 31. Rh7 {[%clk 0:00:16.9]} 31... Qe4+ {[%clk
0:00:31.2]} 32. Kh2 {[%clk 0:00:10.5]} 32... Nf5 {[%clk 0:00:22.2]} 33. Nh5
{[%clk 0:00:06.5]} 33... Qxg4 {[%clk 0:00:21.4]} 0-1